Cogmind - Beta 13 @@@ ROGUE MODE // 2024.04.16 @ 15:31:54 Player: Powerlich_soros Result: Destroyed by as-11198 with Assembled Heavy Rifle Performance ------------- Evolutions (0) 0 Regions Visited (4) 800 Robots Destroyed (4) 20 Value Destroyed (60) 60 Prototype IDs (2) 40 Alien Tech Used (0) 0 Bonus (325) 325 TOTAL SCORE: 1245 Bonus ------- Follower Combat Kills 25 Aligned with FarCom 300 Cogmind --------- Core Integrity 0/250 Matter 300/300 Energy 125/125 System Corruption 3% Temperature Cool (0) Movement Flying (37) Location -9/Mines Parts ------- > --- POWER (1) -------- Light Ion Engine > --- PROPULSION (2) --- Flight Unit Flight Unit > --- UTILITY (2) ------ Visual Processing Unit Sensor Array > --- WEAPON (2) ------- Welding Torch Longsword +1 (fused) > --- INVENTORY (5) ---- Light Ion Engine Experimental Sensor Array Signal Interpreter Improved Terrain Scanner Terrain Scan Processor Peak State ------------ > --- POWER ------------ Light Ion Engine > --- PROPULSION ------- Hover Unit Hover Unit > --- UTILITY ---------- Visual Processing Unit Experimental Sensor Array > --- WEAPON ----------- Assault Rifle Longsword +1 > --- INVENTORY -------- Hover Unit Sensor Array Signal Interpreter Improved Terrain Scanner Light Assault Rifle [Rating: 23] Favorites ----------- Power Light Ion Engine Engine Light Ion Engine Propulsion Hover Unit Wheel Wheel Hover Unit Hover Unit Flight Unit Flight Unit Utility Visual Processing Unit Device Sensor Array Storage Small Storage Unit Processor Visual Processing Unit Weapon Assault Rifle Ballistic Gun Assault Rifle Special Weapon Welding Torch Slashing Weapon Longsword +1 Build | -11 -10 -10 -10 -9 ------- Run | Yrd Mat Min Exi Min Slots Evolved . | . . . . . Power . | . . . . . Propulsion . | . . . . . Utility . | . . . . . Weapon . | . . . . . Parts Attached 39 | 8 4 2 1 24 Power 5 | 1 . . . 4 Engine 5 | 1 . . . 4 Core . | . . . . . Reactor . | . . . . . Propulsion 16 | 2 2 . . 12 Treads . | . . . . . Leg . | . . . . . Wheel 10 | 2 . . . 8 Hover 4 | . 2 . . 2 Flight 2 | . . . . 2 Utility 12 | 1 2 2 . 7 Device 9 | . 1 2 . 6 Storage 2 | 1 . . . 1 Processor 1 | . 1 . . . Hackware . | . . . . . Protection . | . . . . . Artifact . | . . . . . Weapon 6 | 4 . . 1 1 Energy Gun . | . . . . . Energy Cannon . | . . . . . Ballistic Gun 4 | 4 . . . . Ballistic Cannon . | . . . . . Launcher . | . . . . . Special Weapon 1 | . . . . 1 Impact Weapon . | . . . . . Slashing Weapon 1 | . . . 1 . Piercing Weapon . | . . . . . Special Melee Weapon . | . . . . . Unidentified Prototypes 2 | . . . 1 1 Parts Lost 7 | . . . . 7 Power 2 | . . . . 2 Propulsion 3 | . . . . 3 Utility 1 | . . . . 1 Weapon 1 | . . . . 1 Highest Loss Streak 4 | . . . . 4 To Critical Strikes . | . . . . . Average Slot Usage (%) 89 | . 85 100 100 82 Engine 13 | . 14 14 14 12 Wheel 6 | . 19 . . 9 Hover 14 | . 8 28 28 3 Flight 1 | . . . . 3 Device 11 | . 2 14 14 10 Storage 1 | . 8 . . 2 Processor 12 | . 2 14 14 14 Ballistic Gun 16 | . 28 28 24 6 Special Weapon 1 | . . . . 3 Slashing Weapon 7 | . . . 3 14 Naked Turns . | . . . . . Heaviest Build 12 | 12 12 8 9 12 Greatest Support 32 | 26 26 12 12 32 Greatest Overweight (x) 3 | 1 . . . 3 Average Overweight (x) . | . . . . . Largest Inventory Capacity 8 | 8 8 5 5 8 Average Capacity 5 | 6 6 5 5 5 Most Carried 8 | 2 5 4 5 8 Average Carried 3 | 1 2 3 4 4 Final Capacity 8 | 8 5 5 5 5 Final Carried 5 | 2 4 4 5 5 Class Distribution -------------------- 56% | Mutant 18% | Assassin 8% | Scavenger-Mutant 6% | Scavenger-Scout 6% | Scavenger-Assassin 3% | Scout Dominant Class ---------------- Mutant | -10/Materials Mutant | -10/Mines Mutant | -10/Exiles Assassin | -9/Mines Resources | -11 -10 -10 -10 -9 ----------- Run | Yrd Mat Min Exi Min Matter Collected 582 | 205 93 35 . 249 Remotely . | . . . . . Salvage Created 220 | . . . . 220 Parts 4 | . . . . 4 Haulers Intercepted . | . . . . . Recyclers Shooed . | . . . . . Parts Field Recycled . | . . . . . Retrieved Matter . | . . . . . Parts Self-Destructed . | . . . . . Prevented . | . . . . . Kills | -11 -10 -10 -10 -9 ------- Run | Yrd Mat Min Exi Min Combat Hostiles Destroyed 12 | . . . . 12 Melee 12 | . . . . 12 Classes Destroyed 4 | . . . . 4 Worker 2 | . . . . 2 Builder 1 | . . . . 1 Demolisher 1 | . . . . 1 Assembled 11 | . . . . 11 Best Kill Streak 4 | . . . . 4 Combat Bots Only 4 | . . . . 4 Max Kills in Single Turn 1 | . . . . 1 Gunslinging . | . . . . . Exploded . | . . . . . Melee 1 | . . . . 1 Uniques/NPCs Destroyed . | . . . . . Combat | -11 -10 -10 -10 -9 -------- Run | Yrd Mat Min Exi Min Hostile Shots Fired 34 | . . . . 34 Missed 2 | . . . . 2 Damage Taken 664 | . 26 . . 638 Core 257 | . . . . 257 Absorbed by Shields . | . . . . . Core Remaining (%) 100 | 100 . . . . Volleys Fired 3 | . 3 . . . Largest 2 | . 2 . . . Hottest 40 | . 40 . . . Shots Fired 6 | . 6 . . . Gun 6 | . 6 . . . Cannon . | . . . . . Launcher . | . . . . . Special . | . . . . . Kinetic 6 | . 6 . . . Thermal . | . . . . . Explosive . | . . . . . Electromagnetic . | . . . . . Robot Hit Streak . | . . . . . Robot Miss Streak 6 | . 6 . . . Penetration Max . | . . . . . Secondary Targets . | . . . . . Shots Hit Robots 30 | . . . . 30 Core Hits 9 | . . . . 9 Critical Kills . | . . . . . Critical Parts Destroyed . | . . . . . Critical Strikes 2 | . . . . 2 Sever 2 | . . . . 2 Melee Attacks 38 | . . . . 38 Impact . | . . . . . Slashing 38 | . . . . 38 Piercing . | . . . . . Sneak Attacks 4 | . . . . 4 Combat Hostiles 1 | . . . . 1 Follow-up Attacks . | . . . . . Damage Inflicted 1901 | . 5 . . 1896 Guns . | . . . . . Cannons . | . . . . . Explosions . | . . . . . Melee 1896 | . . . . 1896 Ramming 5 | . 5 . . . Kinetic . | . . . . . Thermal . | . . . . . Explosive . | . . . . . Electromagnetic . | . . . . . Impact . | . . . . . Slashing 1896 | . . . . 1896 Piercing . | . . . . . Highest Corruption 3 | . . . . 3 Average Corruption 3 | . . . . 3 Corruption Purged . | . . . . . Corruption Blocked . | . . . . . Effects 10 | . . . . 10 Message Errors 4 | . . . . 4 Matter Fused 1 | . . . . 1 Energy Discharges 2 | . . . . 2 Parts Fused 1 | . . . . 1 Data Loss (minor) 2 | . . . . 2 Overload Shots . | . . . . . Overflow Damage 322 | . . . . 322 Projectiles . | . . . . . Explosions . | . . . . . Melee 322 | . . . . 322 Knockbacks . | . . . . . Impact . | . . . . . Kinetic . | . . . . . Secondary . | . . . . . Self-Inflicted Damage 2 | . 2 . . . Shots . | . . . . . Rammed 1 | . 1 . . . Targets Rammed 1 | . 1 . . . Kicked . | . . . . . Crushed . | . . . . . Highest Temperature 1 | . . . . 1 Average Temperature 1 | . . . . 1 Received Heat Transfer 60 | . . . . 60 Siege Activations . | . . . . . Robots Corrupted . | . . . . . Combat Hostiles . | . . . . . Parts Fried . | . . . . . Impact Corruptions . | . . . . . Robots Melted . | . . . . . Combat Hostiles . | . . . . . Parts Melted 1 | . . . . 1 Heat Transferred . | . . . . . Parts Sabotaged . | . . . . . Parts Stolen . | . . . . . Parts Stripped . | . . . . . Power Chain Reactions . | . . . . . Alert | -11 -10 -10 -10 -9 ------- Run | Yrd Mat Min Exi Min Peak Influence 40 | . 15 27 . 40 Initial 5 | . . 5 . . Average 12 | . 4 10 . 16 Maximum Alert Level . | . . . . . Low Security (%) 100 | 100 100 100 . 100 Level 1 . | . . . . . Level 2 . | . . . . . Level 3 . | . . . . . Level 4 . | . . . . . Level 5 . | . . . . . High Security . | . . . . . Max Security . | . . . . . Squads Dispatched . | . . . . . Investigation . | . . . . . Extermination . | . . . . . Reinforcement . | . . . . . Assault . | . . . . . Garrison . | . . . . . Intercept . | . . . . . Searches Triggered . | . . . . . Construction Impeded . | . . . . . Haulers Reinforced . | . . . . . Active Scanning Responses . | . . . . . Cargo Convoy Interrupts . | . . . . . Stealth | -11 -10 -10 -10 -9 --------- Run | Yrd Mat Min Exi Min Distress Signals . | . . . . . Communications Jammed . | . . . . . Distress Signals . | . . . . . Times Spotted 24 | . 3 . . 21 Peak Tracking Total 3 | . 2 . . 3 Tactical Retreats 5 | . . . . 5 Traps | -11 -10 -10 -10 -9 ------- Run | Yrd Mat Min Exi Min Traps Triggered . | . . . . . Indirectly . | . . . . . Trap Hack Attempts . | . . . . . Triggered . | . . . . . Disarmed . | . . . . . Reprogrammed . | . . . . . Reused . | . . . . . Traps Extracted . | . . . . . Installed . | . . . . . Triggered . | . . . . . Machines | -11 -10 -10 -10 -9 ---------- Run | Yrd Mat Min Exi Min Machines Disabled . | . . . . . Max in Single Turn . | . . . . . Machines Repaired . | . . . . . Machines Dismantled . | . . . . . Machines Sabotaged . | . . . . . Overloaded Fab Kills . | . . . . . Hacking | -11 -10 -10 -10 -9 --------- Run | Yrd Mat Min Exi Min Machines Accessed 6 | . 1 1 4 . Terminals 1 | . 1 . . . Fabricators . | . . . . . Repair Stations . | . . . . . Recycling Units . | . . . . . Scanalyzers . | . . . . . Garrison Access . | . . . . . Total Hacks 51 | . 1 1 49 . Successful 51 | . 1 1 49 . Failed . | . . . . . Catastrophic . | . . . . . Database Lockouts . | . . . . . Manual 1 | . . . 1 . Terminals 1 | . 1 . . . Fabricators . | . . . . . Repair Stations . | . . . . . Recycling Units . | . . . . . Scanalyzers . | . . . . . Garrison Access . | . . . . . Terminal Hacks 51 | . 1 1 49 . Record 49 | . . . 49 . Open Door 1 | . . 1 . . Dispatch Records 1 | . 1 . . . Fabricator Hacks . | . . . . . Repair Station Hacks . | . . . . . Recycling Unit Hacks . | . . . . . Scanalyzer . | . . . . . Garrison Access Hacks . | . . . . . Unauthorized Hacks . | . . . . . Terminals . | . . . . . Fabricators . | . . . . . Repair Stations . | . . . . . Recycling Units . | . . . . . Scanalyzers . | . . . . . Garrison Access . | . . . . . Data Cores Recovered . | . . . . . Used . | . . . . . Hacking Detections . | . . . . . Full Trace Events . | . . . . . Feedback Events . | . . . . . Feedback Blocked . | . . . . . Robot Schematics Acquired . | . . . . . Robots Built . | . . . . . Authchips . | . . . . . Time . | . . . . . Total Robot Build Rating . | . . . . . Part Schematics Acquired . | . . . . . Parts Built . | . . . . . Authchips . | . . . . . Time . | . . . . . Total Part Build Rating . | . . . . . Parts Repaired . | . . . . . Time . | . . . . . Parts Recycled . | . . . . . Recycled Matter . | . . . . . Retrieved Matter . | . . . . . Retrieved Components . | . . . . . Parts Scanalyzed . | . . . . . Part Schematics Acquired . | . . . . . Parts Damaged . | . . . . . Bothacking | -11 -10 -10 -10 -9 ------------ Run | Yrd Mat Min Exi Min Used RIF Installer . | . . . . . Robots Hacked . | . . . . . Non-combat . | . . . . . Combat . | . . . . . Robot Hacks Applied . | . . . . . Relay Couplers Released . | . . . . . Fabnet Peak Effective % . | . . . . . Robots Rewired . | . . . . . Allies Hacked . | . . . . . Hacks Repelled . | . . . . . Allies | -11 -10 -10 -10 -9 -------- Run | Yrd Mat Min Exi Min Total Allies 2 | . . 2 . . Largest Group 2 | . . 2 2 . Highest-Rated Group 52 | . . 52 52 . Highest-Rated Ally 31 | . . 31 31 . Total Orders . | . . . . . Ally Attacks 1 | . . 1 . . Total Damage 20 | . . 20 . . Kills 1 | . . 1 . . Allies Corrupted . | . . . . . Allies Melted . | . . . . . Intel | -11 -10 -10 -10 -9 ------- Run | Yrd Mat Min Exi Min Robot Analysis Total . | . . . . . Derelict Logs Recovered 2 | . . . . 2 Drone Launches . | . . . . . Drone Recoveries . | . . . . . Exploration | -11 -10 -10 -10 -9 ------------- Run | Yrd Mat Min Exi Min Turns Passed 1864 | 81 192 184 544 863 Spaces Moved 2088 | 79 217 171 956 665 Core 99 | 25 . . . 74 Treads . | . . . . . Legs . | . . . . . Wheels 490 | 54 130 . . 306 Hover 1355 | . 87 171 956 141 Flight 144 | . . . . 144 Fastest Speed 37 | 50 56 56 56 37 Average Speed 65 | 85 76 56 56 74 Slowest Speed 200 | 100 90 56 56 200 Overloaded Moves . | . . . . . Propulsion Burnouts . | . . . . . Robots Hopped . | . . . . . Cave-ins Triggered . | . . . . . Exploration Rate (%) 52 | 5 39 47 95 76 Regions Visited 4 Branch Regions 3 Pre-discovered Areas 1 | . . . 1 . Known Exits Taken . | . . . . . Unknown Exits Taken 4 | 1 1 1 1 . Scrap Searched 1 | . . 1 . . Spaces Dug 4 | . . . . 4 Terrain Destroyed 4 | . . . . 4 Melee 4 | . . . . 4 Projectile . | . . . . . AOE . | . . . . . Terrain Rammed . | . . . . . Walls Destroyed . | . . . . . Machines Disabled . | . . . . . Actions | -11 -10 -10 -10 -9 --------- Run | Yrd Mat Min Exi Min Total 2542 | 89 237 258 964 994 Wait 332 | . 3 84 6 239 Move 2084 | 78 216 170 955 665 Hop . | . . . . . Pick Up 18 | 1 5 1 . 11 Fast Attach 18 | 7 2 . 1 8 Attach 7 | 1 . . . 6 Detach 4 | 2 1 . 1 . Swap 14 | . 2 2 . 10 Drop 22 | . 4 1 . 17 Fire 3 | . 3 . . . Melee 38 | . . . . 38 Ram 1 | . 1 . . . Kick . | . . . . . Crush . | . . . . . Escape Stasis . | . . . . . Rewire 1 | . . . 1 . Trap . | . . . . . Miscellaneous . | . . . . . Route ------- -11/Scrapyard -10/Materials -10/Mines -10/Exiles (discovered 2 exits: [*Min x2]) -9/Mines History --------- Turn | Location | Event 9 | -11/Scrapyard | Discovered new exit (range 16) 82 | -11/Scrapyard | Entered Materials 154 | -10/Materials | Met 8R-AWN 265 | -10/Materials | Discovered new exit (range 9) 274 | -10/Materials | Entered Mines 275 | -10/Mines | Followed 8R-AWN into the Mines 305 | -10/Mines | Build established: Mutant 370 | -10/Mines | Met a Derelict who couldn't figure out how to use a Trap Extractor 433 | -10/Mines | Discovered new exit (range 5) 458 | -10/Mines | Entered Exiles 458 | -10/Exiles | Accompanied by 2 allies 472 | -10/Exiles | Discovered new exit (range 16) 488 | -10/Exiles | Led the pair of lost Derelicts to a safe place 496 | -10/Exiles | Welcomed by 8R-AWN 513 | -10/Exiles | Met EX-HEX 561 | -10/Exiles | Met EX-DEC 598 | -10/Exiles | Learned location of Zion (-7) 636 | -10/Exiles | Discovered new exit (range 16) 687 | -10/Exiles | Visited The Gauntlet 785 | -10/Exiles | Met EX-BIN 864 | -10/Exiles | Aligned with FarCom system 865 | -10/Exiles | Given EX-Vault access code 882 | -10/Exiles | Opened EX-Vault 886 | -10/Exiles | Found Prototype Slashing Weapon 886 | -10/Exiles | Identified Longsword +1 901 | -10/Exiles | Warned to stay clear of 0b10 Research branches 944 | -10/Exiles | Learned about 8R-AWN's background 1002 | -10/Exiles | Left Exiles lab with Longsword +1 1002 | -10/Exiles | Entered Mines 1017 | -9/Mines | Found a damaged Exp. Sensor Array with a note attached 1021 | -9/Mines | Found Prototype Device 1022 | -9/Mines | Identified Exp. Sensor Array 1040 | -9/Mines | Assembled infested the area 1045 | -9/Mines | Assisted by a Guerilla fighting off Assembled 1155 | -9/Mines | Lost 4 parts (1p3n) 1374 | -9/Mines | Core integrity fell below 50% 1378 | -9/Mines | Build established: Assassin 1447 | -9/Mines | Lost 3 parts (1p1u1w) 1712 | -9/Mines | Core integrity fell below 20% 1856 | -9/Mines | Learned Materials terminal intel 1865 | -9/Mines | Destroyed by as-11198 with Assembled Heavy Rifle Last Messages --------------- 01755_ Acquired Flight Unit. 01757_ K-01 Serf collects debris. 01757_ Dropped Sml. Storage Unit. 01758_ Acquired 17 matter. 01758_ Acquired 3 matter. 01760_ K-01 Serf collects debris. 01768_ Destroyed Asb. Hover Unit. 01772_ Destroyed Asb. Rifle. 01772_ as-57280 destroyed. 01776_ Acquired 10 matter. 01802_ Acquired Lgt. Ion Engine. 01806_ G=DWCKQGSA7QDWCSF1SOZ F% G330,B/DZ6F 01825_ Dropped Lgt. Ion Engine. 01829_ Acquired 7 matter. 01832_ Extracted 3 matter. 01842_ System corrupted: Matter fused (-7). 01856_ Acquired derelict log, extracted data. Data stored: Materials terminal intel. 01857_ Acquired 7 matter. 01863_ Destroyed Asb. Hover Unit. Map ----- +----------------------------------------------------+ | | | | | | | | | | | | | | | | | ??????????????????????????????????????????????? | | ??????????????????????????????????????????????? | | ??????????????????????????????????????????????? | | ??????????????????????????????????????????????? | | ??????????????????????????????????????????????? | | ??????????????????????????????????????????????? | | ???????????????????????###???????????# ???????? | | ??????????????????????## ##???????? ??????? | | ?????????????????????## ##?????? ??????? | | ?????????????????????# %#?????# ??????? | | ?????????????????????? =##??## ??????? | | ?????????????????????? ### ???????? | | ??????????????????????? #????????? | | ???????????????????????% """ #?????????? | | ???????????????????????? """ #?????????? | | ???????????????????????? """ #?????????? | | ????????????????????????#a #??????????? | | ????????????????????#####@ #??????????????? | | ????????????????????# =*!! ##??########????? | | ????????????????????# =!%=!##??## ## ##???? | | ????????????????????# ##!=%##???# ##??? | | ????????????????????#% ###%##????# #??? | | ????????????????????# #?#%#?????## #??? | | ????????????###?????# #?#*######## #??? | | ???????????? #?????# #?# ; ! | ##?? | | ???????????? %!?????# #?#=#### ### #?? | | ????????????#!#?????# =###=#??# #?# #?? | | ????????????#%#?????#|%= # #### ### ##?? | | ????????????#%#????## ! %!## """ #??? | | ????????????#!#???## == * # """ #??? | | ????????????# #???# % != ###### *""" #??? | | ???????###??#%###?# *!! ##????## % ##?? | | ???????# #?#*%=#### =* =########% #### #?? | | ???????# ##**! #### %!*!=!% %[% % #??## #?? | | ???????# =!= #?##!=%######### #???# ##?? | | #??????## = %= #??###%#??###### !#???# #??? | | ????????# =!!!= ##????#=#??# =!! ==#???# #??? | | ????????##| !*= ##??#### #??#=*%|% =#???# #??? | | ??#??????##=%* ##???#=*% #??# !######???# #??? | | ??????????#%####????#%####??# #?????#### #??? | | ??????????#!######### #?????# #?????# #??? | | ??????#####%%[**==%=!%#?????# %#?????# #??? | +----------------------------------------------------+ Best States ------------- Heat Dissipation 25 Energy Generation 10 Energy Capacity 125 Matter Stores 300 Matter Capacity 300 Sight Range 18 Robot Scan Range 20 Terrain Scan Range 16 Terrain Scan Density 10 Evasion (%) 62 Item Schematics ----------------- None Robot Schematics ------------------ None Fabricated ------------ Nothing Alien Tech Used ----------------- None Achievements -------------- None Challenges ------------ None Game ------ Seed GatlingGodFalx Manual? 0 Play Time 01:00:49 Cumulative 7.5 hours Start 2024.04.16 @ 14:15:37 End 2024.04.16 @ 15:31:54 Sessions 1 Manual Loads 0 Difficulty Rogue Special Mode None Game No. 5 Rogue 5 Adventurer 0 Explorer 0 Win Type - Total 0 Types 0/0/0/0/0/0/0/0/0 Lore% 9 Gallery% 8 Achievement% 8 Wizard Run 0 Options --------- Layout 0 ASCII 1 Keyboard 1 Movement Vi Keybinds 0 Fullscreen 0 Font 18/SmallcapsGlow Map View 66x50 Zoom Use 0% Tactical HUD 1 Map Filters NONE Filters NONE Steam 1 RUN: 05bb403b-add2-4f11-8dec-3ff52938d495